Cogmind - Beta 15 @@@ ROGUE MODE // 2025.05.09 @ 19:35:08 Player: Dosh Result: Destroyed by D-53 Grenadier with Mini Grenade Launcher Performance ------------- Evolutions (0) 0 Regions Visited (4) 800 Robots Destroyed (30) 150 Value Destroyed (720) 720 Prototype IDs (23) 460 Alien Tech Used (0) 0 Bonus (50) 50 TOTAL SCORE: 2180 Bonus ------- Follower Combat Kills 50 Cogmind --------- Core Integrity 0/250 Matter 161/300 Energy 100/100 System Corruption 0% Temperature Cool (0) Movement Treading (240) Ox1 Location -9/Mines Parts ------- > --- POWER (1) -------- (None) > --- PROPULSION (2) --- Light Treads > --- UTILITY (2) ------ Large Storage Unit > --- WEAPON (2) ------- Heavy Assault Rifle Heavy Assault Rifle > --- INVENTORY (15) --- Light Ion Engine Light Treads Light Treads Light Treads High-capacity Storage Unit High-capacity Matter Pod (200) Light Armor Plating Hacking Suite Hacking Suite Spread Laser Spread Laser Spread Laser Spread Laser Rocket Launcher Plasma Cutter Peak State ------------ > --- POWER ------------ Ion Engine > --- PROPULSION ------- Light Treads Light Treads > --- UTILITY ---------- High-capacity Storage Unit Light Armor Plating > --- WEAPON ----------- Heavy Assault Rifle Heavy Assault Rifle > --- INVENTORY -------- Light Ion Engine Light Treads Light Treads Light Treads Large Storage Unit Large Matter Pod Light Armor Plating Hacking Suite Hacking Suite Trap Reconfigurator Spread Laser Spread Laser Spread Laser Spread Laser Rocket Launcher Plasma Cutter [Rating: 12] Favorites ----------- Power Ion Engine Engine Ion Engine Propulsion Light Treads Treads Light Treads Leg Aluminum Leg Utility Large Storage Unit Storage Large Storage Unit Protection Light Armor Plating Weapon Heavy Assault Rifle Energy Gun Spread Laser Ballistic Gun Heavy Assault Rifle Launcher Rocket Launcher Build | -11 -10 -10 -10 -9 ------- Run | Yrd Mat Min Exi Min Slots Evolved . | . . . . . Power . | . . . . . Propulsion . | . . . . . Utility . | . . . . . Weapon . | . . . . . Parts Attached 20 | 6 10 2 1 1 Power 1 | 1 . . . . Engine 1 | 1 . . . . Core . | . . . . . Reactor . | . . . . . Propulsion 5 | 2 3 . . . Treads 3 | 2 1 . . . Leg 2 | . 2 . . . Wheel . | . . . . . Hover . | . . . . . Flight . | . . . . . Utility 5 | 1 2 1 1 . Device . | . . . . . Storage 4 | 1 2 . 1 . Processor . | . . . . . Hackware . | . . . . . Protection 1 | . . 1 . . Artifact . | . . . . . Weapon 9 | 2 5 1 . 1 Energy Gun 2 | . 2 . . . Energy Cannon . | . . . . . Ballistic Gun 6 | 2 3 1 . . Ballistic Cannon . | . . . . . Launcher 1 | . . . . 1 Special Weapon . | . . . . . Impact Weapon . | . . . . . Slashing Weapon . | . . . . . Piercing Weapon . | . . . . . Special Melee Weapon . | . . . . . Unidentified Prototypes . | . . . . . Parts Lost 4 | . 1 . . 3 Power 1 | . . . . 1 Propulsion 2 | . 1 . . 1 Utility 1 | . . . . 1 Weapon . | . . . . . Highest Loss Streak 3 | . 1 . . 3 To Critical Strikes . | . . . . . Average Backups 11 | . 9 14 15 15 Power . | . 1 1 1 1 Propulsion 1 | . . 2 3 3 Utility 3 | . 1 4 5 5 Weapon 5 | . 5 5 5 5 Tool/Special . | . . . . . Unused Backups 15 | . 2 . 1 12 Power 1 | . . . . 1 Propulsion 3 | . . . . 3 Utility 6 | . . . 1 5 Weapon 4 | . 2 . . 2 Tool/Special 1 | . . . . 1 Average Slot Usage (%) 90 | . 83 98 100 90 Engine 13 | . 14 14 14 7 Treads 25 | . 24 28 28 28 Leg 1 | . 2 . . . Storage 14 | . 15 14 14 14 Protection 6 | . . 12 14 12 Ballistic Gun 26 | . 25 28 28 22 Peak Build Rating 12 | 6 11 11 12 12 Average Rating 9 | 4 7 10 11 11 On Entrance 7 | . 6 10 11 12 Naked Turns . | . . . . . Heaviest Build 55 | 12 41 34 54 55 Greatest Support 40 | 40 40 40 40 40 Greatest Overweight (x) 13 | . 13 . 1 1 Average Overweight (x) . | . . . . 1 Largest Inventory Capacity 20 | 8 15 15 20 20 Average Capacity 13 | 6 11 15 17 19 Most Carried 17 | 2 14 15 17 16 Average Carried 11 | . 9 14 15 15 Final Capacity 20 | 8 15 15 20 15 Final Carried 16 | 2 13 15 16 15 Class Distribution -------------------- 98% | Mutant Dominant Class ---------------- Mutant | -10/Materials Mutant | -10/Mines Mutant | -10/Exiles Mutant | -9/Mines Resources | -11 -10 -10 -10 -9 ----------- Run | Yrd Mat Min Exi Min Matter Collected 904 | 249 422 213 20 . Remotely . | . . . . . Salvage Created 1123 | . 898 90 . 135 Parts 65 | . 52 7 . 6 Haulers Intercepted 2 | . 2 . . . Recyclers Shooed 1 | . 1 . . . Parts Field Recycled . | . . . . . Retrieved Matter . | . . . . . Parts Self-Destructed . | . . . . . Prevented . | . . . . . Kills | -11 -10 -10 -10 -9 ------- Run | Yrd Mat Min Exi Min Combat Hostiles Destroyed 38 | . 15 4 . 19 Guns 20 | . 15 4 . 1 AOE 18 | . . . . 18 Classes Destroyed 8 | . 6 . . 2 Hauler 2 | . 2 . . . Recycler 2 | . 2 . . . Operator 2 | . 2 . . . Watcher 3 | . 3 . . . Swarmer 6 | . 3 3 . . Grunt 14 | . 12 1 . 1 Demolisher 1 | . . . . 1 Assembled 18 | . . . . 18 Best Kill Streak 19 | . 4 3 . 19 Combat Bots Only 19 | . 3 3 . 19 Max Kills in Single Turn 5 | . 1 1 . 5 Gunslinging . | . . . . . Exploded 5 | . . . . 5 Melee . | . . . . . Uniques/NPCs Destroyed . | . . . . . Combat | -11 -10 -10 -10 -9 -------- Run | Yrd Mat Min Exi Min Hostile Shots Fired 119 | . 68 20 . 31 Missed 39 | . 20 11 . 8 Hits 80 | . 48 9 . 23 Projectile 80 | . 48 9 . 23 AOE 10 | . . . . 10 Damage Taken 1281 | . 586 88 . 607 Core 256 | . 124 . . 132 Absorbed by Shields . | . . . . . Regen/Repaired (Parts) 279 | . 279 . . . Core Remaining (%) 100 | 100 . . . . Volleys Fired 115 | . 88 13 . 14 Largest 2 | . 2 2 . 2 Hottest 46 | . 46 46 . 46 Shots Fired 211 | . 165 26 . 20 Gun 203 | . 165 26 . 12 Cannon . | . . . . . Launcher 8 | . . . . 8 Special . | . . . . . Kinetic 203 | . 165 26 . 12 Thermal . | . . . . . Explosive 8 | . . . . 8 Electromagnetic . | . . . . . Robot Hit Streak 12 | . 12 5 . 5 Robot Miss Streak 3 | . 2 3 . 2 Penetration Max . | . . . . . Secondary Targets 3 | . 1 2 . . Max Gunslinging Chain 1 | . 1 1 . . Shots Hit Robots 139 | . 114 16 . 9 Core Hits 96 | . 52 6 . 38 Critical Kills 1 | . 1 . . . Critical Parts Destroyed 1 | . 1 . . . Critical Strikes 2 | . 2 . . . Destroy 2 | . 2 . . . Melee Attacks . | . . . . . Impact . | . . . . . Slashing . | . . . . . Piercing . | . . . . . Sneak Attacks . | . . . . . Combat Hostiles . | . . . . . Follow-up Attacks . | . . . . . Damage Inflicted 2357 | 3 964 233 . 1157 Guns 1291 | . 946 233 . 112 Cannons . | . . . . . Explosions 1045 | . . . . 1045 Melee . | . . . . . Ramming 21 | 3 18 . . . Kinetic 1291 | . 946 233 . 112 Thermal . | . . . . . Explosive 1045 | . . . . 1045 Electromagnetic . | . . . . . Impact . | . . . . . Slashing . | . . . . . Piercing . | . . . . . Highest Corruption . | . . . . . Average Corruption . | . . . . . Corruption Purged . | . . . . . Corruption Blocked . | . . . . . Overload Shots . | . . . . . Overflow Damage 11 | . . . . 11 Projectiles . | . . . . . Explosions 11 | . . . . 11 Melee . | . . . . . Knockbacks . | . . . . . Impact . | . . . . . Kinetic . | . . . . . Secondary . | . . . . . Self-Inflicted Damage 5 | . . . . 5 Shots 1 | . . . . 1 Rammed 5 | 2 3 . . . Targets Rammed 6 | 2 4 . . . Kicked . | . . . . . Crushed 1 | . 1 . . . Highest Temperature 30 | . 30 4 . 4 Average Temperature 10 | . 10 4 . 3 Received Heat Transfer 309 | . 294 9 . 6 Siege Activations . | . . . . . Martial Activations . | . . . . . Shielding Activations . | . . . . . Robots Disrupted . | . . . . . Combat Hostiles . | . . . . . Robots Corrupted . | . . . . . Combat Hostiles . | . . . . . Parts Fried . | . . . . . Impact Corruptions . | . . . . . Robots Melted . | . . . . . Combat Hostiles . | . . . . . Parts Melted . | . . . . . Heat Transferred . | . . . . . Parts Sabotaged . | . . . . . Parts Stolen . | . . . . . Parts Stripped . | . . . . . Power Chain Reactions . | . . . . . Alert | -11 -10 -10 -10 -9 ------- Run | Yrd Mat Min Exi Min Maximum Alert Level . | . . . . . Low Security (%) 100 | 100 100 100 . 100 Level 1 . | . . . . . Level 2 . | . . . . . Level 3 . | . . . . . Level 4 . | . . . . . Level 5 . | . . . . . High Security . | . . . . . Max Security . | . . . . . Peak Influence 144 | . 144 61 . 39 Initial 31 | . . 31 . . Average 51 | . 65 15 . 27 Influence Increases 822 | . 579 124 . 119 Destroy 0b10 Robot/C 440 | . 300 100 . 40 Destroy 0b10 Robot/NC 45 | . 45 . . . Destroy Leader 110 | . 90 20 . . Allied During Kill 7 | . . 4 . 3 Successful Hack 38 | . 38 . . . Select Force Hacks 60 | . 60 . . . Disable Machine 45 | . . . . 45 Destroy Structure 32 | . 1 . . 31 Lose Combat Pursuer 45 | . 45 . . . Influence Decreases 803 | . 497 206 . 100 Entered New Map 51 | . . 51 . . Time Decay 672 | . 487 155 . 30 Lost Part 40 | . 10 . . 30 Lost Ally 40 | . . . . 40 Squads Dispatched 5 | . 5 . . . Investigation 3 | . 3 . . . Extermination . | . . . . . Reinforcement 2 | . 2 . . . Assault . | . . . . . Garrison . | . . . . . Intercept . | . . . . . Searches Triggered . | . . . . . Construction Impeded . | . . . . . Haulers Reinforced . | . . . . . Active Scanning Responses . | . . . . . Cargo Convoy Interrupts . | . . . . . Stealth | -11 -10 -10 -10 -9 --------- Run | Yrd Mat Min Exi Min Distress Signals 3 | . 3 . . . Communications Jammed . | . . . . . Distress Signals . | . . . . . Times Spotted 57 | . 30 6 . 21 Peak Tracking Total 18 | . 4 2 . 18 Tactical Retreats 3 | . 3 . . . Traps | -11 -10 -10 -10 -9 ------- Run | Yrd Mat Min Exi Min Traps Triggered 3 | . 3 . . . Indirectly . | . . . . . Trap Hack Attempts . | . . . . . Triggered . | . . . . . Disarmed . | . . . . . Reprogrammed . | . . . . . Reused . | . . . . . Traps Extracted . | . . . . . Installed . | . . . . . Triggered . | . . . . . Machines | -11 -10 -10 -10 -9 ---------- Run | Yrd Mat Min Exi Min Machines Disabled 3 | . . . . 3 Max in Single Turn . | . . . . . Machines Repaired . | . . . . . Machines Dismantled . | . . . . . Machines Sabotaged . | . . . . . Overloaded Fab Kills . | . . . . . Hacking | -11 -10 -10 -10 -9 --------- Run | Yrd Mat Min Exi Min Machines Accessed 11 | . 9 . 2 . Terminals 6 | . 6 . . . Fabricators . | . . . . . Repair Stations 1 | . 1 . . . Recycling Units 2 | . 2 . . . Scanalyzers . | . . . . . Garrison Access . | . . . . . Total Hacks 36 | . 34 . 2 . Successful 22 | . 20 . 2 . Failed 13 | . 13 . . . Catastrophic . | . . . . . Database Lockouts 1 | . 1 . . . Manual 22 | . 21 . 1 . Terminals 22 | . 22 . . . Fabricators . | . . . . . Repair Stations 10 | . 10 . . . Recycling Units 2 | . 2 . . . Scanalyzers . | . . . . . Garrison Access . | . . . . . Terminal Hacks 3 | . 1 . 2 . Record 1 | . . . 1 . Robot Schematic 1 | . 1 . . . Proto ID Catalog 1 | . . . 1 . Fabricator Hacks . | . . . . . Repair Station Hacks 9 | . 9 . . . Scan Component 5 | . 5 . . . Repair 4 | . 4 . . . Recycling Unit Hacks . | . . . . . Scanalyzer . | . . . . . Garrison Access Hacks . | . . . . . Unauthorized Hacks 10 | . 10 . . . Terminals 8 | . 8 . . . Botnet 3 | . 3 . . . Skim 5 | . 5 . . . Fabricators . | . . . . . Repair Stations . | . . . . . Recycling Units 2 | . 2 . . . Tunnel 2 | . 2 . . . Scanalyzers . | . . . . . Garrison Access . | . . . . . Data Cores Recovered . | . . . . . Used . | . . . . . Hacking Detections 6 | . 6 . . . Full Trace Events . | . . . . . Feedback Events . | . . . . . Feedback Blocked . | . . . . . Robot Schematics Acquired 1 | . 1 . . . Robots Built . | . . . . . Authchips . | . . . . . Time . | . . . . . Total Robot Build Rating . | . . . . . Part Schematics Acquired . | . . . . . Parts Built . | . . . . . Authchips . | . . . . . Time . | . . . . . Total Part Build Rating . | . . . . . Parts Repaired 4 | . 4 . . . Time 104 | . 104 . . . Parts Recycled . | . . . . . Recycled Matter . | . . . . . Retrieved Matter . | . . . . . Retrieved Components . | . . . . . Parts Scanalyzed . | . . . . . Part Schematics Acquired . | . . . . . Parts Damaged . | . . . . . Bothacking | -11 -10 -10 -10 -9 ------------ Run | Yrd Mat Min Exi Min Used RIF Installer . | . . . . . Robots Hacked . | . . . . . Non-combat . | . . . . . Combat . | . . . . . Robot Hacks Applied . | . . . . . Relay Couplers Released . | . . . . . Fabnet Peak Effective % . | . . . . . Robots Rewired 4 | . . . 4 . Allies Hacked . | . . . . . Hacks Repelled . | . . . . . Allies | -11 -10 -10 -10 -9 -------- Run | Yrd Mat Min Exi Min Total Allies 5 | . . 1 4 . Largest Group 4 | . . 1 4 3 Highest-Rated Group 45 | . . 31 45 36 Highest-Rated Ally 31 | . . 31 21 21 Total Orders . | . . . . . Ally Attacks 12 | . . 4 . 8 Total Damage 155 | . . 42 . 113 Kills 3 | . . 1 . 2 Allies Corrupted 1 | . . . . 1 Allies Melted . | . . . . . Intel | -11 -10 -10 -10 -9 ------- Run | Yrd Mat Min Exi Min Active Infowar (turns) . | . . . . . Robot Analysis Total . | . . . . . Derelict Logs Recovered 1 | . . 1 . . Drone Launches . | . . . . . Drone Recoveries . | . . . . . Exploration | -11 -10 -10 -10 -9 ------------- Run | Yrd Mat Min Exi Min Turns Passed 3339 | 71 1800 564 840 64 Spaces Moved 1632 | 39 820 324 443 6 Core 5 | 4 1 . . . Treads 1545 | 35 737 324 443 6 Legs 82 | . 82 . . . Wheels . | . . . . . Hover . | . . . . . Flight . | . . . . . Fastest Speed 50 | 50 120 160 160 240 Average Speed 166 | 148 159 160 186 240 Slowest Speed 700 | 160 700 160 240 240 Overloaded Moves . | . . . . . Propulsion Burnouts . | . . . . . Robots Hopped . | . . . . . Potential Cave-ins . | . . . . . Cave-ins Triggered . | . . . . . Exploration Rate (%) 55 | 4 98 81 89 6 Regions Visited 4 Branch Regions 3 Pre-discovered Areas 3 | . 2 . 1 . Known Exits Taken 2 | . 1 . 1 . Unknown Exits Taken 2 | 1 . 1 . . Scrap Searched 1 | . . 1 . . Spaces Dug . | . . . . . Terrain Destroyed 42 | . . . . 42 Melee . | . . . . . Projectile . | . . . . . AOE 42 | . . . . 42 Terrain Rammed . | . . . . . Walls Destroyed . | . . . . . Machines Disabled . | . . . . . Actions | -11 -10 -10 -10 -9 --------- Run | Yrd Mat Min Exi Min Total 2058 | 48 1175 344 457 34 Wait 223 | . 212 . . 11 Move 1628 | 38 819 323 442 6 Hop . | . . . . . Pick Up 26 | 2 18 4 2 . Fast Attach 21 | 6 14 1 . . Attach 2 | . 2 . . . Detach 4 | . 4 . . . Swap 9 | . 4 1 1 3 Drop 13 | . 10 2 1 . Fire 115 | . 88 13 . 14 Melee . | . . . . . Ram . | . . . . . Kick . | . . . . . Crush 6 | 2 4 . . . Escape Stasis . | . . . . . Rewire 11 | . . . 11 . Trap . | . . . . . Miscellaneous . | . . . . . Route ------- -11/Scrapyard -10/Materials (discovered 6 exits: [*Mat x3] / *Min x2 / [*Sub]) -10/Mines (discovered 3 exits: [*Mat x2] / *Exi) -10/Exiles (discovered 2 exits: *Min x2) -9/Mines History --------- Turn | Location | Event 2 | -11/Scrapyard | Met Revision 17 2 | -11/Scrapyard | Discovered new exit (range 16) 72 | -11/Scrapyard | Entered Materials 315 | -10/Materials | Build established: Mutant 363 | -10/Materials | Discovered new exit (range 5) 385 | -10/Materials | Discovered new exit (range 4) 556 | -10/Materials | Discovered new exit (range 13) 604 | -10/Materials | Discovered new exit (range 11) 946 | -10/Materials | Discovered new exit (range 10) 1225 | -10/Materials | Repaired Lgt. Treads 1255 | -10/Materials | Central database locked down 1268 | -10/Materials | Discovered new exit (range 8) 1313 | -10/Materials | Learned 4 Subcaves zone layouts 1397 | -10/Materials | Identified exit to Mines 1443 | -10/Materials | Learned 2 Storage zone layouts 1451 | -10/Materials | Learned location of 1 exit from Recycling 1470 | -10/Materials | Learned 4 Recycling zone layouts 1760 | -10/Materials | Repaired Lgt. Treads 1787 | -10/Materials | Repaired Lgt. Treads 1815 | -10/Materials | Repaired Lgt. Treads 1872 | -10/Materials | Entered Mines 1875 | -10/Mines | Received a Mining Laser from a helpful Derelict 1916 | -10/Mines | Joined a pair of Derelicts in attacking an 0b10 outpost 2042 | -10/Mines | Discovered new exit (range 11) 2208 | -10/Mines | Discovered new exit (range 8) 2304 | -10/Mines | Received a Rocket Launcher from a helpful Derelict 2367 | -10/Mines | Learned Materials terminal intel 2430 | -10/Mines | Deemed a non-threat by the Exiles lab entrance 2430 | -10/Mines | Discovered new exit (range 5) 2436 | -10/Mines | Entered Exiles 2436 | -10/Exiles | Found Exiles lab destroyed 2437 | -10/Exiles | Identified exit to Mines 2907 | -10/Exiles | Opened EX-Vault 2915 | -10/Exiles | Found Trap Reconfigurator 3091 | -10/Exiles | Learned location of Zion (-6) 3276 | -10/Exiles | Entered Mines 3276 | -9/Mines | Accompanied by 4 allies 3277 | -9/Mines | Assembled infested the area 3282 | -9/Mines | Assisted by a Guerilla fighting off Assembled 3316 | -9/Mines | Core integrity fell below 50% 3331 | -9/Mines | Core integrity fell below 20% 3337 | -9/Mines | Lost 5 allies 3340 | -9/Mines | Destroyed by D-53 Grenadier with Mini Grenade Launcher Last Messages --------------- 03312_ as-47214 destroyed. 03312_ Destroyed Asb. Hover Unit. 03312_ as-80184 destroyed. 03314_ as-45156 destroyed. 03314_ as-96127 destroyed. 03314_ as-21495 destroyed. 03316_ as-23203 destroyed. 03318_ The unstable cave ceiling collapses. 03318_ as-60748 destroyed. 03320_ The unstable cave ceiling collapses. 03326_ C-30 ARC bursts open, deploying its payload. 03326_ D-53 Grenadier unfolds itself. 03329_ The unstable cave ceiling collapses. 03331_ Lgt. Armor Plating destroyed. 03333_ The unstable cave ceiling collapses. 03334_ D-53 Grenadier destroyed. 03334_ R-06 Scavenger collects Flexi-carbon Leg. 03336_ The unstable cave ceiling collapses. 03338_ R-06 Scavenger collects Launcher Guidance Computer. 03340_ Lgt. Treads destroyed. Map ----- +----------------------------------------------------+ | | | | | | | | | | | | | | | | | | | | | | | | | | | | | | | | | | | | | | | | | | | | | ???????????????????### ##??????????????????? | | ???????????????????# #??????????????????? | | ????????????????????# ######?????????????? | | ????????????????????# @ #?????????????? | | ????????????????????# "" #?????????????? | | ????????????????????# = "" #?????????????? | | ????????????????????# [ #?????????????? | | ????????????????????### %%* ;#????????????? | | ??????????????????????## ##????????????? | | ???????????????????????# = #????????????? | | ???????????????????????# *d! #????????????? | | ???????????????????????## = # ???????????? | | ????????????????????????### #r ??????????? | | ??????????????????????????# ##%# ????????????? | | ??????????????????????????? " ???????????? | | ???????????????????????????## # ?????????????? | | ?????????????????????????????# ???????????????? | | ??????????????????????????????#??????????????????? | | ?????????????????????????????????????????????????? | | ?????????????????????????????????????????????????? | | ?????????????????????????????????????????????????? | | ?????????????????????????????????????????????????? | | ?????????????????????????????????????????????????? | | ?????????????????????????????????????????????????? | | ?????????????????????????????????????????????????? | | ?????????????????????????????????????????????????? | | ?????????????????????????????????????????????????? | | ?????????????????????????????????????????????????? | +----------------------------------------------------+ Best States ------------- Heat Dissipation 25 Energy Generation 10 Energy Capacity 250 Matter Stores 300 Matter Capacity 300 Sight Range 16 Terrain Scan Density 10 Armor Coverage 150 Evasion (%) 55 Recoil Reduction 2 Item Schematics ----------------- None Robot Schematics ------------------ M-13 Machinist | -10/Materials | Hacked Fabricated ------------ Nothing Repaired ---------- Lgt. Treads | 13% | -10/Materials Lgt. Treads | 50% | -10/Materials Lgt. Treads | 62% | -10/Materials Lgt. Treads | 73% | -10/Materials Alien Tech Used ----------------- None Achievements -------------- None Challenges ------------ None Game ------ Seed SchematicStealthPlating Manual? 0 Play Time 00:13:47 Cumulative 681.3 hours Start 2025.05.09 @ 19:21:53 End 2025.05.09 @ 19:35:08 Sessions 1 Manual Loads 0 Difficulty Rogue Special Mode None Game No. 364 Rogue 364 Adventurer 0 Explorer 0 Win Type - Total 55 Types 37/4/5/2/1/1/3/1/1/0 Lore% 87 Gallery% 82 Achievement% 91 Wizard Run 0 Options --------- Layout 0 ASCII 0 Keyboard 1 Movement Numpad Keybinds 0 Fullscreen 2 Font 18/SmallcapsGlow Map View 76x50 Zoom Use 0% Tactical HUD 1 Map Filters NONE Filters NONE Steam 1 RUN: 8ffb7474-a050-4189-93db-9656d07df270